[Event "XVIII La Palma-ch 2019"]
[Site "La Palma"]
[Date "2019.04.01"]
[Round "6.4"]
[White "Ros Octavio De Toledo, Eduardo"]
[Black "Martin Rodriguez, Jose Carlos"]
[Result "1-0"]
[ECO "A54"]
[WhiteElo "2061"]
[BlackElo "1761"]
[Annotator "NA RC"]
[PlyCount "47"]
[EventDate "2019.03.29"]
[EventType "swiss"]
[EventCountry "ESP"]
[SourceTitle "playchess.com"]
[Source "ChessBase"]
[SourceQuality "1"]
[TimeControl "5400+30"]

1. c4 {[%emt 0:00:32]} e5 {[%emt 0:00:00]} 2. Nc3 {[%emt 0:00:17]} Nf6 {[%emt 0:00:02]} 3. Nf3 {[%emt 0:00:30]} Nc6 {[%emt 0:00:08]} 4. g3 {[%emt 0:00:43]} d6 {[%emt 0:02:20]} 5. Bg2 {[%emt 0:00:35]} Be7 {[%emt 0:00:46]} 6. O-O {[%emt 0:00:18] LiveBook: 9 Games} O-O {[%emt 0:00:03]} 7. d4 {[%emt 0:00:58]} exd4 {[%emt 0:00:41]} 8. Nxd4 {[%emt 0:00:15]} Ne5 {[%emt 0:00:04]} 9. b3 {[%emt 0:01:19] A54: Old Indian Defence with Nf3, but without e4} Bg4 $146 {[%emt 0:01:28]} ({Predecessor:} 9... Re8 10. Bb2 Bf8 11. h3 h6 12. Qc2 Rb8 13. Rad1 Bd7 14. e4 Qc8 15. Kh2 a6 16. Nd5 Nxd5 17. cxd5 {½-½ (56) Lalic,B (2394)-Kathmale,S (2323) Pardubice 2018}) 10. Bxb7 {[%emt 0:03:09]} Qd7 {[%emt 0:00:14]} 11. f4 {[%emt 0:06:40]} c5 {[%emt 0:06:44]} 12. fxe5 {[%emt 0:03:31]} Qxb7 {[%emt 0:02:14]} 13. exf6 {[%emt 0:00:20]} Bxf6 {[%emt 0:04:09]} 14. Rxf6 {[%emt 0:00:27]} cxd4 {[%emt 0:02:04]} 15. Nd5 {[%emt 0:01:11]} Rae8 {[%emt 0:01:34]} 16. Rf2 {[%emt 0:01:36]} Re4 {[%emt 0:00:29]} 17. Bb2 {[%emt 0:01:52]} Rfe8 {[%emt 0:00:07]} 18. Bxd4 {[%emt 0:01:14]} Bxe2 {[%emt 0:00:46]} 19. Qd2 {[%emt 0:00:29]} Qd7 {[%emt 0:02:08]} 20. Re1 {[%emt 0:02:00]} Qg4 {[%emt 0:00:21]} 21. Nf4 {[%emt 0:02:41]} Bf3 {[%emt 0:00:57]} 22. Ref1 {[%emt 0:01:42]} g5 {[%emt 0:00:54]} 23. Rxf3 {[%emt 0:01:58]} gxf4 {[%emt 0:00:32]} 24. Rxf4 $18 {[%emt 0:00:10]} 1-0

[Event "XVIII La Palma-ch 2019"]
[Site "La Palma"]
[Date "2019.04.02"]
[Round "7.1"]
[White "Guerra Arrocha, Daniel"]
[Black "Rodriguez Miranda, Sergio"]
[Result "1/2-1/2"]
[ECO "D13"]
[WhiteElo "2038"]
[BlackElo "1957"]
[Annotator "NA RC"]
[PlyCount "62"]
[EventDate "2019.03.29"]
[EventType "swiss"]
[EventCountry "ESP"]
[SourceTitle "playchess.com"]
[Source "ChessBase"]
[SourceQuality "1"]
[TimeControl "5400+30"]

1. Nf3 {[%emt 0:00:00]} Nf6 {[%emt 0:00:00]} 2. d4 {[%emt 0:00:00]} d5 {[%emt 0:00:00]} 3. c4 {[%emt 0:00:00]} c6 {[%emt 0:00:00]} 4. Nc3 {[%emt 0:00:00]} e6 {[%emt 0:00:00]} 5. cxd5 {[%emt 0:00:00]} cxd5 {[%emt 0:00:00]} 6. Bf4 {[%emt 0:00:05]} a6 {[%emt 0:00:10]} 7. e3 {[%emt 0:00:07]} Be7 {[%emt 0:00:08]} 8. Bd3 {[%emt 0:00:10]} Nc6 {[%emt 0:00:08]} 9. a3 {[%emt 0:00:09]} O-O {[%emt 0:00:18]} 10. O-O {[%emt 0:00:13]} b5 {[%emt 0:00:30]} 11. b4 {[%emt 0:00:15]} Bb7 {[%emt 0:00:48]} 12. h3 {[%emt 0:00:07]} h6 {[%emt 0:00:10]} 13. Qe2 {[%emt 0:00:19]} Rc8 {[%emt 0:00:23]} 14. Rfc1 {[%emt 0:00:10]} Bd6 {[%emt 0:00:14]} 15. Bxd6 {[%emt 0:00:55]} Qxd6 {[%emt 0:00:45]} 16. Ra2 {[%emt 0:00:36]} Rc7 {[%emt 0:00:17]} 17. Rac2 {[%emt 0:00:58]} Rfc8 {[%emt 0:01:09]} 18. Nb1 {[%emt 0:00:35]} Nb8 {[%emt 0:00:52]} 19. Ne5 {[%emt 0:00:55]} Rxc2 {[%emt 0:00:27]} 20. Rxc2 {[%emt 0:00:15]} Rxc2 {[%emt 0:00:18]} 21. Qxc2 {[%emt 0:00:07]} Nc6 {[%emt 0:00:16]} 22. Nxc6 {[%emt 0:01:10]} Qxc6 {[%emt 0:01:01]} 23. Qc3 {[%emt 0:02:03]} Nd7 {[%emt 0:01:16]} 24. Kf1 {[%emt 0:01:04]} Kf8 {[%emt 0:00:42]} 25. Ke2 {[%emt 0:00:26]} Ke7 {[%emt 0:00:13]} 26. Qxc6 {[%emt 0:03:13]} Bxc6 {[%emt 0:00:20]} 27. Kd2 {[%emt 0:00:10]} Kd6 {[%emt 0:00:14]} 28. a4 {[%emt 0:01:31]} Nb6 {[%emt 0:01:14]} 29. a5 {[%emt 0:00:33]} Nc4+ {[%emt 0:00:49]} 30. Kc3 {[%emt 0:00:15]} Bb7 {[%emt 0:00:14]} 31. Nd2 {[%emt 0:00:20]} Nxd2 {[%emt 0:00:13]} 1/2-1/2

[Event "XVIII La Palma-ch 2019"]
[Site "La Palma"]
[Date "2019.04.02"]
[Round "7.2"]
[White "Alonso Perez, Alfredo"]
[Black "Ros Octavio De Toledo, Eduardo"]
[Result "1/2-1/2"]
[ECO "A07"]
[WhiteElo "1730"]
[BlackElo "2061"]
[Annotator "NA RC"]
[PlyCount "121"]
[EventDate "2019.03.29"]
[EventType "swiss"]
[EventCountry "ESP"]
[SourceTitle "playchess.com"]
[Source "ChessBase"]
[SourceQuality "1"]
[TimeControl "5400+30"]

{[%evp 14,93,20,32767,32767,13,34,32767,9,0,17,0,32767,32767,32767,32767,0,0,15,-17,24,0,3,0,9,-8,0,0,0,0,32767,0,29,6,7,8,13,4,6,13,8,8,35,33,40,32767,29,-57,-55,-241,0,0,-7,-725,-120,-166,32767,-180,-194,-243,-232,-610,-386,-669,-440,-5431,-300,-255,-71,-366,-102,-81,-161,-93,-343,-343,-343,-343,-343,-343,-262,-262]} 1. Nf3 {[%emt 0:00:00]} Nf6 {[%emt 0:00:00]} 2. g3 {[%emt 0:00:03]} d5 {[%emt 0:00:53]} 3. Bg2 {[%emt 0:00:18]} c6 {[%emt 0:00:29]} 4. O-O {[%emt 0:00:42]} Bg4 {[%emt 0:00:33]} 5. d3 {[%emt 0:06:57]} Nbd7 {[%emt 0:00:28]} 6. h3 {[%emt 0:02:25]} Bh5 {[%emt 0:02:27]} 7. g4 {[%emt 0:04:54] A07: Réti Opening: New York and Capablanca Systems} (7. Qe1 e5 8. e4 Bd6 9. exd5 Bxf3 10. Bxf3 Nxd5 11. Nc3 Nxc3 12. bxc3 O-O 13. a4 a5 14. Bg2 Qc7 {½-½ (75) Howell,D (2682)-Vitiugov,N (2732) Caleta 2018}) 7... Bg6 {[%emt 0:01:21]} 8. Bf4 {[%emt 0:00:05]} Qb6 {[%emt 0:02:11]} 9. Nbd2 $146 {[%emt 0:01:06]} ({Predecessor:} 9. b3 e5 10. Bxe5 Nxe5 11. Nxe5 Qd4 12. Nxg6 hxg6 13. Nd2 Bd6 14. Nf3 Qb6 {1-0 (29) Kokol,P (2271)-Koscak,J (1787) Nova Gorica 2012}) 9... e6 {[%emt 0:00:55]} 10. b3 {[%emt 0:04:52]} Bc5 {[%emt 0:02:06]} 11. c3 {[%emt 0:01:25]} a5 {[%emt 0:00:42]} 12. a3 {[%emt 0:03:21]} O-O {[%emt 0:03:49]} 13. b4 {[%emt 0:02:54]} Be7 {[%emt 0:00:23]} 14. Nb3 {[%emt 0:13:17]} axb4 {[%emt 0:01:52]} 15. axb4 {[%emt 0:01:41]} Rfe8 {[%emt 0:01:37]} 16. Nbd2 {[%emt 0:07:51]} Bf8 {[%emt 0:01:18]} 17. Qb3 {[%emt 0:05:31]} Rxa1 {[%emt 0:04:34]} 18. Rxa1 {[%emt 0:00:05]} e5 {[%emt 0:00:29]} 19. Bg3 {[%emt 0:05:40]} e4 {[%emt 0:01:14]} 20. dxe4 $1 {[%emt 0:06:06]} Nxe4 {[%emt 0:00:20]} 21. Nxe4 {[%emt 0:00:30]} Bxe4 {[%emt 0:00:32]} 22. Qa4 {[%emt 0:04:30]} g6 {[%emt 0:08:47]} 23. Qa5 {[%emt 0:07:26]} (23. Nd4 $5 {[%cal Rf2f3]} Bxg2 24. Kxg2 $11) 23... Bg7 {[%emt 0:01:38]} 24. Qxb6 {[%emt 0:01:04]} Nxb6 {[%emt 0:00:14]} 25. Ra7 {[%emt 0:01:04]} Bxc3 {[%emt 0:06:54]} 26. Rxb7 {[%emt 0:00:21]} Nc4 {[%emt 0:00:31]} 27. Bf4 {[%emt 0:10:35]} Kg7 {[%emt 0:01:05]} 28. Ng5 {[%emt 0:02:14]} Bxg2 {[%emt 0:05:30]} 29. Nxf7 {[%emt 0:02:31]} Rxe2 {[%emt 0:03:55]} 30. Nd6+ {[%emt 0:02:25]} (30. Kxg2 $14 Kf8 31. Nd6 Nxd6 32. Bxd6+ Kg8 33. b5 cxb5 34. Rxb5) 30... Kf6 {[%emt 0:01:32]} 31. Nxc4 $2 {[%emt 0:02:23]} (31. Kxg2 $15 Be1 32. Kg1) 31... dxc4 $2 {[%emt 0:00:56]} (31... Bxh3 $19 32. Rxh7 Re1+ 33. Kh2 dxc4 34. Rxh3 Bxb4) 32. Kxg2 {[%emt 0:00:15]} Bd4 {[%emt 0:00:24]} 33. Rc7 $2 {[%emt 0:00:54]} (33. Rd7 $11 c5 34. Rd6+ Re6 35. bxc5 Rxd6 36. cxd6) 33... Ke6 $2 {[%emt 0:02:39]} (33... Rxf2+ $19 {has better winning chances.} 34. Kg3 {[#]} Rxf4 $1 {[%mdl 512]} 35. Rxc6+ Ke5) 34. Rxc6+ {[%emt 0:00:29]} (34. Bg3 $17 c3 35. Kf3) 34... Kd5 {[%emt 0:00:12]} 35. Rd6+ {[%emt 0:01:01]} Ke4 {[%emt 0:00:33]} 36. Re6+ {[%emt 0:00:21]} Kd3 {[%emt 0:00:13]} 37. Rxe2 $2 {[%emt 0:00:18]} (37. Rd6 Rxf2+ 38. Kg3 Rxf4 39. Kxf4) 37... Kxe2 {[%emt 0:00:02]} 38. h4 {[%emt 0:00:44]} Bxf2 {[%emt 0:00:42]} 39. h5 {[%emt 0:00:07]} gxh5 $2 {[%emt 0:00:13]} (39... c3 40. b5 gxh5 41. gxh5 c2) 40. gxh5 {[%emt 0:00:04]} c3 {[%emt 0:00:23]} 41. Bc1 {[%emt 0:00:19]} Be3 {[%emt 0:00:19]} 42. Ba3 {[%emt 0:00:09]} c2 {[%emt 0:07:38]} (42... Kd3 $142 43. Kf3 Bb6) 43. b5 {[%emt 0:00:16]} c1=Q {[%emt 0:00:35]} 44. Bxc1 {[%emt 0:00:10]} Bxc1 {[%emt 0:00:05]} 45. b6 {[%emt 0:00:09]} Bf4 {[%emt 0:00:18]} 46. b7 {[%emt 0:00:12]} h6 {[%emt 0:00:56]} 47. b8=Q $19 {[%emt 0:00:05]} Bxb8 {[%emt 0:00:08]} 48. Kh1 {[%emt 0:01:32]} Kf3 {[%emt 0:00:17]} 49. Kg1 {[%emt 0:00:10]} Kg4 {[%emt 0:00:08]} 50. Kg2 {[%emt 0:00:08]} Kxh5 {[%emt 0:00:08]} 51. Kh1 {[%emt 0:00:19]} Kg4 {[%emt 0:00:14]} 52. Kg2 {[%emt 0:00:08]} Bc7 {[%emt 0:00:31]} 53. Kh1 {[%emt 0:00:25]} Kg3 {[%emt 0:00:09]} 54. Kg1 {[%emt 0:00:03]} Bb6+ {[%emt 0:00:09]} 55. Kh1 {[%emt 0:00:09]} Bc7 {[%emt 0:00:05]} 56. Kg1 {[%emt 0:00:09]} Bd6 {[%emt 0:00:03]} 57. Kh1 {[%emt 0:00:34]} h5 {[%emt 0:00:05]} 58. Kg1 {[%emt 0:00:07]} h4 {[%emt 0:00:05]} 59. Kh1 {[%emt 0:00:06]} Kh3 {[%emt 0:00:10]} 60. Kg1 {[%emt 0:00:11]} Bc5+ {[%emt 0:00:01]} 61. Kh1 {[%emt 0:00:21]} 1/2-1/2

[Event "XVIII La Palma-ch 2019"]
[Site "La Palma"]
[Date "2019.04.02"]
[Round "7.4"]
[White "Rodriguez Rodriguez, Hector"]
[Black "Francisco Concepcion, Francisco"]
[Result "1-0"]
[ECO "C42"]
[WhiteElo "1780"]
[BlackElo "1494"]
[Annotator "NA RC"]
[PlyCount "123"]
[EventDate "2019.03.29"]
[EventType "swiss"]
[EventCountry "ESP"]
[SourceTitle "playchess.com"]
[Source "ChessBase"]
[SourceQuality "1"]
[TimeControl "5400+30"]

1. e4 {[%emt 0:00:00]} e5 {[%emt 0:00:00]} 2. Nf3 {[%emt 0:00:00]} Nf6 {[%emt 0:00:00]} 3. Nxe5 {[%emt 0:00:00]} d6 {[%emt 0:00:00]} 4. Nf3 {[%emt 0:00:04]} Nxe4 {[%emt 0:00:00]} 5. c4 {[%emt 0:00:23]} Be7 {[%emt 0:05:22]} 6. Nc3 {[%emt 0:00:07]} Nxc3 {[%emt 0:04:54]} 7. bxc3 {[%emt 0:00:04]} O-O {[%emt 0:01:47]} 8. d4 {[%emt 0:01:25]} Bf6 {[%emt 0:00:35]} 9. Be2 {[%emt 0:00:55]} c5 {[%emt 0:07:26]} 10. O-O {[%emt 0:00:21]} Qa5 {[%emt 0:02:03]} (10... Nc6 $11) 11. Qc2 {[%emt 0:03:05]} Nc6 $11 {[%emt 0:03:41]} 12. Bg5 {[%emt 0:06:21]} Qd8 {[%emt 0:03:53]} 13. Be3 {[%emt 0:01:15]} d5 {[%emt 0:10:49]} 14. dxc5 {[%emt 0:05:14]} dxc4 {[%emt 0:01:25]} 15. Rad1 {[%emt 0:02:32]} Qc7 {[%emt 0:02:31]} 16. Ng5 {[%emt 0:05:23]} Bxg5 {[%emt 0:10:03]} 17. Bxg5 {[%emt 0:00:07]} Be6 {[%emt 0:01:25]} 18. Qe4 {[%emt 0:15:04]} Qe5 {[%emt 0:04:29]} 19. Qxe5 {[%emt 0:04:51]} Nxe5 {[%emt 0:00:02]} 20. Rfe1 {[%emt 0:04:34]} Nd3 {[%emt 0:00:36]} 21. Bxd3 {[%emt 0:01:06]} cxd3 {[%emt 0:00:01]} 22. Rxd3 {[%emt 0:00:14]} Bxa2 {[%emt 0:01:04]} 23. Rd7 {[%emt 0:01:07]} Rfc8 {[%emt 0:02:57]} 24. Rxb7 {[%emt 0:02:11]} a5 {[%emt 0:01:34]} 25. Be3 {[%emt 0:10:53]} a4 {[%emt 0:00:44]} 26. Ra1 {[%emt 0:01:02]} Bb3 {[%emt 0:00:35]} 27. Ra3 {[%emt 0:04:23]} Bd5 {[%emt 0:03:27]} 28. Rb4 {[%emt 0:00:12]} Bc6 {[%emt 0:00:13]} 29. Kf1 {[%emt 0:01:56]} Kf8 {[%emt 0:01:22]} 30. Ke2 {[%emt 0:02:08]} Ke7 {[%emt 0:03:21]} 31. Bf4 {[%emt 0:00:46]} f6 {[%emt 0:00:41]} 32. Bd6+ {[%emt 0:00:35]} Kf7 {[%emt 0:00:43]} 33. f3 {[%emt 0:00:25]} Re8+ {[%emt 0:01:36]} 34. Kd2 {[%emt 0:00:05]} g5 {[%emt 0:01:02]} 35. Rb6 {[%emt 0:00:29]} Rec8 {[%emt 0:00:11]} 36. Ke3 {[%emt 0:01:11]} f5 {[%emt 0:01:56]} 37. Kd4 {[%emt 0:00:45]} Kf6 {[%emt 0:02:50]} 38. c4 {[%emt 0:01:32]} h5 {[%emt 0:00:58]} 39. g3 {[%emt 0:04:09]} Kg6 {[%emt 0:01:41]} 40. Ke5 {[%emt 0:04:02]} Re8+ {[%emt 0:00:26]} 41. Kd4 {[%emt 0:00:06]} Rec8 {[%emt 0:00:02]} 42. Be7 {[%emt 0:01:38]} Ra7 {[%emt 0:01:24]} 43. Bd6 {[%emt 0:00:26]} Kf7 {[%emt 0:01:34]} 44. Ke5 {[%emt 0:00:40]} Kg6 {[%emt 0:00:01]} 45. Kd4 {[%emt 0:04:52]} Kf7 {[%emt 0:00:26]} 46. h4 {[%emt 0:02:08]} g4 {[%emt 0:05:25]} 47. fxg4 {[%emt 0:03:54]} hxg4 {[%emt 0:00:43]} 48. Be5 {[%emt 0:03:08]} Rd7+ {[%emt 0:02:23]} 49. Ke3 {[%emt 0:01:11]} Ra7 {[%emt 0:00:26]} 50. Kf4 {[%emt 0:00:28]} Be4 {[%emt 0:01:06]} 51. Bd6 {[%emt 0:01:17]} Bc2 {[%emt 0:00:44]} 52. Rb2 {[%emt 0:00:43]} Be4 {[%emt 0:00:10]} 53. h5 {[%emt 0:00:53]} Rh8 {[%emt 0:00:49]} 54. Rh2 {[%emt 0:00:15]} Ke6 {[%emt 0:00:33]} 55. h6 {[%emt 0:00:56]} Rhh7 {[%emt 0:00:48]} 56. Rh5 {[%emt 0:02:25]} Bc2 {[%emt 0:03:36]} 57. Bf8 {[%emt 0:00:38]} Rac7 {[%emt 0:01:55]} 58. Rg5 {[%emt 0:00:37]} Bb3 {[%emt 0:02:02]} 59. Rg7 {[%emt 0:00:21]} Rhxg7 {[%emt 0:00:15]} 60. hxg7 {[%emt 0:00:15]} Kf7 {[%emt 0:00:20]} 61. Kxf5 {[%emt 0:00:16]} Bd1 {[%emt 0:00:49]} 62. Ke5 {[%emt 0:00:07]} 1-0

[Event "XVIII La Palma-ch 2019"]
[Site "La Palma"]
[Date "2019.04.02"]
[Round "7.5"]
[White "Martin Rodriguez, Miguel Angel"]
[Black "Martin Rodriguez, Miguel"]
[Result "1/2-1/2"]
[ECO "D00"]
[WhiteElo "1498"]
[BlackElo "1362"]
[Annotator "NA RC"]
[PlyCount "40"]
[EventDate "2019.03.29"]
[EventType "swiss"]
[EventCountry "ESP"]
[SourceTitle "playchess.com"]
[Source "ChessBase"]
[SourceQuality "1"]
[TimeControl "5400+30"]

1. d4 {[%emt 0:00:00]} d5 {[%emt 0:00:00]} 2. e3 {[%emt 0:00:00]} Nf6 {[%emt 0:00:00]} 3. Bd3 {[%emt 0:00:19]} e6 {[%emt 0:00:11]} 4. Nd2 {[%emt 0:00:17]} c5 {[%emt 0:00:32]} 5. c3 {[%emt 0:00:14]} Be7 {[%emt 0:00:55]} 6. f4 {[%emt 0:00:40]} b6 {[%emt 0:01:48]} 7. Ngf3 {[%emt 0:00:12]} O-O {[%emt 0:00:43]} 8. Ne5 {[%emt 0:00:16]} Bb7 {[%emt 0:00:38]} 9. O-O {[%emt 0:00:58]} Ne4 {[%emt 0:01:15]} 10. Qf3 {[%emt 0:01:08]} f5 {[%emt 0:01:19]} 11. Kh1 {[%emt 0:03:00]} Nc6 {[%emt 0:04:50]} 12. g4 {[%emt 0:00:55]} cxd4 {[%emt 0:01:42]} 13. exd4 {[%emt 0:00:15]} g6 $11 {[%emt 0:14:14]} ({Black should try} 13... Nxe5 $19 14. fxe5 Bh4) 14. Nxc6 {[%emt 0:03:51]} Bxc6 {[%emt 0:00:24]} 15. g5 {[%emt 0:00:39]} Re8 {[%emt 0:04:30]} 16. h4 {[%emt 0:00:24]} Kf7 {[%emt 0:02:31]} 17. Qh3 {[%emt 0:02:38]} Rh8 {[%emt 0:03:32]} 18. Nf3 {[%emt 0:00:20]} Bd6 {[%emt 0:01:36]} 19. Bxe4 {[%emt 0:02:48]} dxe4 {[%emt 0:00:35]} 20. Ne5+ {[%emt 0:00:42]} Bxe5 {[%emt 0:00:11]} 1/2-1/2

[Event "XVIII La Palma-ch 2019"]
[Site "La Palma"]
[Date "2019.04.02"]
[Round "7.5"]
[White "Martin Rodriguez, Miguel Angel"]
[Black "Martin Rodriguez, Miguel Angel"]
[Result "*"]
[ECO "D00"]
[WhiteElo "1498"]
[BlackElo "1498"]
[Annotator "NA RC"]
[PlyCount "58"]
[EventDate "2019.03.29"]
[EventType "swiss"]
[EventCountry "ESP"]
[SourceTitle "playchess.com"]
[Source "ChessBase"]
[SourceQuality "1"]
[TimeControl "5400+30"]

1. d4 {[%emt 0:00:00]} d5 {[%emt 0:00:00]} 2. e3 {[%emt 0:00:00]} Nf6 {[%emt 0:00:00]} 3. Bd3 {[%emt 0:00:19]} e6 {[%emt 0:00:11]} 4. Nd2 {[%emt 0:00:17]} c5 {[%emt 0:00:32]} 5. c3 {[%emt 0:00:14]} Be7 {[%emt 0:00:55]} 6. f4 {[%emt 0:00:40]} b6 {[%emt 0:01:48]} 7. Ngf3 {[%emt 0:00:12]} O-O {[%emt 0:00:43]} 8. Ne5 {[%emt 0:00:16]} Bb7 {[%emt 0:00:38]} 9. O-O {[%emt 0:00:58]} Ne4 {[%emt 0:01:15]} 10. Qf3 {[%emt 0:01:08]} f5 {[%emt 0:01:19]} 11. Kh1 {[%emt 0:03:00]} Nc6 {[%emt 0:04:50]} 12. g4 {[%emt 0:00:55]} cxd4 {[%emt 0:01:42]} 13. exd4 {[%emt 0:00:15]} g6 $11 {[%emt 0:14:14]} ({Black should try} 13... Nxe5 $19 14. fxe5 Bh4) 14. Nxc6 {[%emt 0:03:51]} Bxc6 {[%emt 0:00:24]} 15. g5 {[%emt 0:00:39]} Re8 {[%emt 0:04:30]} 16. h4 {[%emt 0:00:24]} Kf7 {[%emt 0:02:31]} 17. Qh3 {[%emt 0:02:38]} Rh8 {[%emt 0:03:32]} 18. Nf3 {[%emt 0:00:20]} Bd6 {[%emt 0:01:36]} 19. Bxe4 {[%emt 0:02:48]} dxe4 {[%emt 0:00:35]} 20. Ne5+ {[%emt 0:00:42]} Bxe5 {[%emt 0:00:11]} 21. fxe5 {[%emt 0:00:08]} Qd5 {[%emt 0:05:46]} 22. Be3 {[%emt 0:00:27]} b5 {[%emt 0:00:07]} 23. Kg2 {[%emt 0:00:12]} Rab8 {[%emt 0:00:05]} 24. Kf2 {[%emt 0:00:02]} b4 {[%emt 0:00:05]} 25. h5 {[%emt 0:01:05]} bxc3 {[%emt 0:00:10]} 26. bxc3 {[%emt 0:00:05]} Rb2+ {[%emt 0:00:04]} 27. Kg3 {[%emt 0:00:02]} Rxa2 {[%emt 0:00:07]} 28. hxg6+ {[%emt 0:00:12]} Kxg6 {[%emt 0:00:03]} 29. Qh6+ {[%emt 0:00:02]} Kf7 {[%emt 0:00:05]} *

[Event "XVIII La Palma-ch 2019"]
[Site "La Palma"]
[Date "2019.04.02"]
[Round "7.6"]
[White "Otero Campos, Sofia"]
[Black "Bethencourt Hernandez, Alberto"]
[Result "1/2-1/2"]
[ECO "A48"]
[WhiteElo "1323"]
[BlackElo "1225"]
[Annotator "NA RC"]
[PlyCount "43"]
[EventDate "2019.03.29"]
[EventType "swiss"]
[EventCountry "ESP"]
[SourceTitle "playchess.com"]
[Source "ChessBase"]
[SourceQuality "1"]
[TimeControl "5400+30"]

1. d4 {[%emt 0:00:00]} Nf6 {[%emt 0:00:00]} 2. Bf4 {[%emt 0:00:01]} g6 {[%emt 0:00:37]} 3. e3 {[%emt 0:00:24]} Bg7 {[%emt 0:00:22]} 4. Nf3 {[%emt 0:00:24]} d6 {[%emt 0:00:31]} 5. Be2 {[%emt 0:00:32]} O-O {[%emt 0:00:48]} 6. O-O {[%emt 0:00:37]} c6 {[%emt 0:01:01]} 7. c4 {[%emt 0:02:11]} Bf5 {[%emt 0:01:04]} 8. Nc3 {[%emt 0:01:14]} Nbd7 {[%emt 0:01:08]} 9. h3 {[%emt 0:02:58]} Nb6 {[%emt 0:03:38]} 10. Rc1 {[%emt 0:04:14]} Re8 {[%emt 0:04:44]} 11. b4 {[%emt 0:06:47]} Be6 {[%emt 0:06:27]} 12. c5 {[%emt 0:04:43]} Nbd5 {[%emt 0:01:25]} 13. Nxd5 {[%emt 0:00:59]} Nxd5 {[%emt 0:00:26]} 14. Bc4 {[%emt 0:08:53]} Nxf4 {[%emt 0:01:50]} 15. exf4 {[%emt 0:00:32]} Bxc4 {[%emt 0:00:53]} 16. Rxc4 {[%emt 0:00:11]} d5 {[%emt 0:01:13]} 17. Rc2 {[%emt 0:00:34]} Qc7 {[%emt 0:01:52]} 18. Qd2 {[%emt 0:02:36]} Bh6 {[%emt 0:04:52]} 19. g3 {[%emt 0:01:46]} Qd7 {[%emt 0:00:55]} 20. Kg2 {[%emt 0:00:38]} Qf5 {[%emt 0:03:43]} 21. Qe2 {[%emt 0:02:57]} Bg7 {[%emt 0:02:47]} 22. Rd2 {[%emt 0:01:16]} 1/2-1/2

[Event "XVIII La Palma-ch 2019"]
[Site "La Palma"]
[Date "2019.04.02"]
[Round "7.7"]
[White "Haertl, Siegfried"]
[Black "Hernandez Concepcion, Mario"]
[Result "1-0"]
[ECO "D02"]
[WhiteElo "1945"]
[BlackElo "1097"]
[Annotator "NA RC"]
[PlyCount "69"]
[EventDate "2019.03.29"]
[EventType "swiss"]
[EventCountry "ESP"]
[SourceTitle "playchess.com"]
[Source "ChessBase"]
[SourceQuality "1"]
[TimeControl "5400+30"]

{[%evp 24,64,26,-15,28,-9,-6,-18,-6,0,32767,92,114,32767,32767,32767,32767,32767,32767,32767,107,113,129,120,120,117,131,27,32,39,50,52,156,179,459,486,575,613,634,672,702,566,796]} 1. d4 {[%emt 0:01:15]} d5 {[%emt 0:00:00]} 2. Nf3 {[%emt 0:00:07]} Nf6 {[%emt 0:00:00]} 3. Bf4 {[%emt 0:00:43]} Nc6 {[%emt 0:00:36]} 4. e3 {[%emt 0:00:59]} Bf5 {[%emt 0:00:26]} 5. Bb5 {[%emt 0:00:32]} Bd7 {[%emt 0:02:41]} 6. O-O {[%emt 0:00:38] D02: 1 d4 d5 2 Nf3 sidelines, including 2...Nf6 3 g3 and 2...Nf6 3 Bf4} e6 {[%emt 0:00:12]} 7. Nbd2 {[%emt 0:00:30]} Bd6 {[%emt 0:00:57]} 8. Bg3 $146 {[%emt 0:00:26]} ({Predecessor:} 8. Bg5 h6 9. Bh4 g5 10. Bg3 Bxg3 11. hxg3 g4 12. Bxc6 Bxc6 13. Ne5 {0-1 (45) Aliaga Salinas,R (1952)-Oncoy Custodio,J (1475) Lima 2013}) 8... O-O {[%emt 0:01:04]} 9. c4 {[%emt 0:00:27]} Ne7 {[%emt 0:05:02]} 10. Ne5 {[%emt 0:01:50]} Bxb5 {[%emt 0:01:50]} 11. cxb5 {[%emt 0:00:13]} Ng6 {[%emt 0:02:24]} 12. Rc1 {[%emt 0:01:11]} Rc8 {[%emt 0:01:06]} 13. a4 {[%emt 0:01:53]} Nd7 {[%emt 0:04:32]} 14. f4 {[%emt 0:01:07]} Ndxe5 {[%emt 0:02:15]} 15. dxe5 {[%emt 0:02:22]} Be7 {[%emt 0:01:13]} 16. Nb3 {[%emt 0:00:22]} f6 {[%emt 0:04:01]} 17. Nd4 {[%emt 0:00:42]} Qd7 {[%emt 0:00:52]} 18. Qg4 {[%emt 0:02:10]} f5 {[%emt 0:01:40]} 19. Qe2 {[%emt 0:02:19]} c5 {[%emt 0:02:30]} 20. bxc6 {[%emt 0:00:17]} bxc6 {[%emt 0:00:18]} 21. Qa6 {[%emt 0:00:21]} Rc7 {[%emt 0:06:09]} ({Black should try} 21... c5 $1 $14 22. Qxe6+ (22. Nxe6 Rfe8 $11) 22... Qxe6 23. Nxe6 Rfe8) 22. Rxc6 {[%emt 0:02:36]} Rxc6 {[%emt 0:02:19]} 23. Qxc6 {[%emt 0:00:15]} ({Don't do} 23. Nxc6 $6 Bc5 $14) 23... Qxc6 {[%emt 0:00:59]} 24. Nxc6 {[%emt 0:00:08]} Bc5 {[%emt 0:00:21] [#]} 25. Bf2 {[%emt 0:01:32]} (25. b4 $1 $16 {[%cal Rb4c5]} Bxe3+ 26. Bf2 Bxf2+ 27. Rxf2) 25... Rc8 {[%emt 0:02:31]} 26. Na5 {[%emt 0:01:38]} Bb6 {[%emt 0:02:57]} 27. Nb3 {[%emt 0:03:01]} Rc2 {[%emt 0:00:59]} (27... d4 $14 28. exd4 (28. Nxd4 Bxd4 29. exd4 Nxf4 $11) 28... Nxf4) 28. a5 {[%emt 0:01:08]} Rxb2 $2 {[%emt 0:01:56]} (28... Bc5 $16 29. Ra1 (29. Nxc5 Rxc5 30. b4 Rb5 $16) 29... a6) 29. axb6 {[%emt 0:00:12]} Rxb3 {[%emt 0:03:05]} 30. bxa7 {[%emt 0:00:10]} Ra3 {[%emt 0:00:11] [#]} 31. e4 $1 {[%emt 0:00:48]} fxe4 {[%emt 0:00:25]} 32. Rb1 $18 {[%emt 0:00:31]} Kf7 {[%emt 0:00:53]} 33. Rb7+ {[%emt 0:00:19]} Ne7 {[%emt 0:00:12]} 34. Rxe7+ {[%emt 0:00:10]} Kxe7 {[%emt 0:00:13]} 35. Bc5+ {[%emt 0:00:55]} 1-0